fUST/lending_fUST_20250905
["ID","MTS","AMOUNT","RATE_DAILY","PERIOD"]
[383587482,1757011846599,-500.0,0.00015022,2]
[383587484,1757011846609,-500.0,0.00015028,2]
[383587486,1757011846619,-159.26706949,0.00015126,2]
[383587488,1757011846629,-480.0,0.00015225,2]
[383587490,1757011846637,-480.0,0.00015225,2]
[383587492,1757011846647,-480.0,0.00015225,2]
[383587494,1757011846661,-287.06318669,0.00015226,2]
[383587496,1757011846672,-480.0,0.00015226,2]
[383587498,1757011846681,-480.0,0.00015226,2]
[383587500,1757011846694,-573.54,0.00015226,2]
[383587502,1757011846705,-480.0,0.00015226,2]
[383587504,1757011846714,-480.0,0.00015226,2]
[383587506,1757011846723,-257.23626978,0.00015226,2]
[383587508,1757011846733,-480.0,0.00015226,2]
[383587510,1757011846743,-480.0,0.00015226,2]
[383587512,1757011846753,-480.0,0.00015226,2]
[383587514,1757011846764,-480.0,0.00015226,2]
[383587516,1757011846773,-480.0,0.00015226,2]
[383587518,1757011846784,-480.0,0.00015226,2]
[383587520,1757011846796,-480.0,0.00015226,2]
[383587522,1757011846806,-480.0,0.00015226,2]
[383587524,1757011846816,-480.0,0.00015226,2]
[383587526,1757011846825,-480.0,0.00015226,2]
[383587528,1757011846834,-480.0,0.00015226,2]
[383587530,1757011846843,-480.0,0.00015226,2]
[383587532,1757011846853,-480.0,0.00015226,2]
[383587534,1757011846862,-442.24477664,0.00015227,2]
[383587536,1757011846871,-324.8407,0.00015227,2]
[383587538,1757011846881,-480.0,0.00015227,2]
[383587540,1757011846891,-480.0,0.00015227,2]
[383587542,1757011846900,-480.0,0.00015227,2]
[383587544,1757011846910,-420.0,0.00015476,2]
[383587546,1757011846919,-1000.0,0.00015492,2]
[383587548,1757011846928,-480.0,0.00015499,2]
[383587550,1757011846938,-480.0,0.00015499,2]
[383587553,1757011846948,-480.0,0.00015499,2]
[383587555,1757011846958,-480.0,0.000155,2]
[383587557,1757011846968,-480.0,0.000155,2]
[383587559,1757011846977,-480.0,0.000155,2]
[383587561,1757011846986,-480.0,0.000155,2]
[383587563,1757011846996,-480.0,0.000155,2]
[383587565,1757011847006,-480.0,0.000155,2]
[383587567,1757011847015,-480.0,0.000155,2]
[383587569,1757011847025,-480.0,0.000155,2]
[383587571,1757011847034,-603.31964346,0.000155,2]
[383587573,1757011847044,-480.0,0.000155,2]
[383587575,1757011847053,-480.0,0.000155,2]
[383587577,1757011847063,-480.0,0.000155,2]
[383587579,1757011847072,-480.0,0.000155,2]
[383587581,1757011847082,-480.0,0.000155,2]
[383587583,1757011847091,-480.0,0.000155,2]
[383587585,1757011847100,-480.0,0.000155,2]
[383587587,1757011847110,-480.0,0.000155,2]
[383587589,1757011847119,-500.0,0.00015501,2]
[383587591,1757011847128,-480.0,0.00015501,2]
[383587592,1757011847138,-480.0,0.00015501,2]
[383587595,1757011847148,-480.0,0.00015501,2]
[383587596,1757011847158,-1117.49000262,0.00015509,2]
[383587598,1757011847168,-1000.0,0.00015509,2]
[383587600,1757011847177,-1000.0,0.00015509,2]
[383587602,1757011847186,-1000.0,0.0001557,2]
[383587604,1757011847195,-1000.0,0.0001557,2]
[383587606,1757011847205,-1000.0,0.0001557,2]
[383587608,1757011847214,-975.0,0.00015654,2]
[383587610,1757011847223,-633.0,0.00015654,2]
[383587612,1757011847233,-2153.0,0.00015654,2]
[383587614,1757011847242,-480.0,0.00015773,2]
[383587616,1757011847253,-480.0,0.00015773,2]
[383587628,1757011847378,-480.0,0.00015773,2]
[383587630,1757011847387,-480.0,0.00015774,2]
[383587632,1757011847397,-480.0,0.00015774,2]
[383587634,1757011847407,-480.0,0.00015774,2]
[383587636,1757011847416,-480.0,0.00015774,2]
[383587637,1757011847426,-480.0,0.00015774,2]
[383587639,1757011847435,-480.0,0.00015774,2]
[383587642,1757011847445,-480.0,0.00015774,2]
[383587643,1757011847454,-480.0,0.00015774,2]
[383587645,1757011847464,-480.0,0.00015774,2]
[383587647,1757011847473,-480.0,0.00015774,2]
[383587649,1757011847483,-480.0,0.00015774,2]
[383587651,1757011847494,-448.36094915,0.00015774,2]
[383587653,1757011847503,-480.0,0.00015774,2]
[383587655,1757011847513,-480.0,0.00015774,2]
[383587657,1757011847523,-480.0,0.00015774,2]
[383587659,1757011847533,-480.0,0.00015774,2]
[383587661,1757011847543,-480.0,0.00015775,2]
[383587663,1757011847553,-480.0,0.00015775,2]
[383587665,1757011847563,-480.0,0.00015775,2]
[383587667,1757011847572,-28339.57942594,0.00015949,2]
[383587670,1757011847582,-151.0,0.00015972,2]
[383587672,1757011847593,-151.0,0.00015972,2]
[383587673,1757011847603,-151.0,0.00015972,2]
[383587675,1757011847612,-203.43290435,0.00015972,2]
[383587677,1757011847622,-187.78006525,0.00015972,2]
[383587679,1757011847631,-151.0,0.00015972,2]
[383587681,1757011847641,-151.0,0.00015972,2]
[383587683,1757011847650,-151.26354934,0.00015972,2]
[383587685,1757011847660,-48681.40686851,0.00016,2]
[383587687,1757011847669,-480.0,0.00016047,2]
[383587689,1757011847680,-612.03,0.00016047,2]
[383587691,1757011847690,-480.0,0.00016047,2]
[383587693,1757011847701,-480.0,0.00016048,2]
[383587695,1757011847712,-271.25,0.00016048,2]
[383587697,1757011847722,-480.0,0.00016048,2]
[383587699,1757011847731,-523.61,0.00016048,2]
[383587701,1757011847741,-480.0,0.00016048,2]
[383587703,1757011847751,-480.0,0.00016048,2]
[383587705,1757011847761,-480.0,0.00016048,2]
[383587707,1757011847771,-480.0,0.00016048,2]
[383587709,1757011847781,-480.0,0.00016048,2]
[383587711,1757011847791,-480.0,0.00016048,2]
[383587713,1757011847800,-480.0,0.00016048,2]
[383587715,1757011847809,-480.0,0.00016048,2]
[383587717,1757011847819,-480.0,0.00016048,2]
[383587719,1757011847829,-480.0,0.00016048,2]
[383587721,1757011847839,-594.81,0.00016048,2]
[383587723,1757011847848,-480.0,0.00016049,2]
[383587725,1757011847857,-480.0,0.00016049,2]
[383587727,1757011847867,-524.06,0.00016049,2]
[383587729,1757011847876,-160.0,0.00016052,2]
[383587731,1757011847885,-1500.0,0.00016057,2]
[383587733,1757011847895,-1500.0,0.00016117,2]
[383587735,1757011847904,-1414.66697941,0.00016117,2]
[383587737,1757011847913,-720.0,0.00016171,2]
[383587739,1757011847923,-480.0,0.00016321,2]
[383587741,1757011847933,-480.0,0.00016321,2]
[383587743,1757011847942,-480.0,0.00016322,2]
[383587745,1757011847952,-201.13,0.00016322,2]
[383587747,1757011847961,-480.0,0.00016322,2]
[383587749,1757011847971,-480.0,0.00016322,2]
[383587751,1757011847980,-480.0,0.00016322,2]
[383587753,1757011847990,-480.0,0.00016322,2]
[383587755,1757011847999,-480.0,0.00016322,2]
[383587756,1757011848008,-480.0,0.00016322,2]
[383587758,1757011848018,-480.0,0.00016322,2]
[383587760,1757011848029,-480.0,0.00016323,2]
[383587762,1757011848038,-276.67,0.00016323,2]
[383587764,1757011848047,-3000.0,0.000164,2]
[383587766,1757011848057,-3000.0,0.000164,2]
[383587768,1757011848066,-500.0,0.00016438,2]
[383587770,1757011848076,-500.0,0.00016438,2]
[383587772,1757011848086,-600.98,0.00016587,3]
[383587774,1757011848095,-480.0,0.00016595,2]
[383587776,1757011848105,-183.74,0.00016595,2]
[383587778,1757011848115,-480.0,0.00016596,2]
[383587780,1757011848125,-480.0,0.00016596,2]
[383587782,1757011848134,-480.0,0.00016596,2]
[383587784,1757011848144,-243.89,0.00016596,2]
[383587786,1757011848154,-480.0,0.00016596,2]
[383587788,1757011848163,-480.0,0.00016596,2]
[383587790,1757011848173,-480.0,0.00016596,2]
[383587792,1757011848182,-480.0,0.00016597,2]
[383587794,1757011848192,-260.0,0.000166,2]
[383587796,1757011848201,-2050.46260552,0.00016605,2]
[383587798,1757011848211,-2000.0,0.00016665,2]
[383587799,1757011848220,-3000.0,0.0001678,2]
[383587801,1757011848228,-500.0,0.00016801,2]
[383587803,1757011848238,-159.26706946,0.0001682,2]
[383587805,1757011848248,-480.0,0.00016869,2]
[383587807,1757011848257,-480.0,0.0001687,2]
[383587809,1757011848267,-580.87,0.0001687,2]
[383587811,1757011848277,-480.0,0.0001687,2]
[383587813,1757011848286,-474.19,0.0001687,2]
[383587815,1757011848295,-480.0,0.0001687,2]
[383587817,1757011848305,-391.4,0.0001687,2]
[383587819,1757011848315,-480.0,0.00016871,2]
[383587821,1757011848325,-587.0,0.00016953,2]
[383587823,1757011848334,-300.39,0.00017143,2]
[383587825,1757011848344,-480.0,0.00017144,2]
[383587827,1757011848353,-480.0,0.00017144,2]
[383587829,1757011848363,-480.0,0.00017144,2]
[383587831,1757011848373,-202.52,0.00017145,2]
[383587833,1757011848383,-360.0,0.00017148,2]
[383587835,1757011848392,-2500.0,0.00017213,2]
[383587837,1757011848402,-166.15575365,0.00017341,2]
[383587839,1757011848413,-480.0,0.00017418,2]
[383587841,1757011848424,-480.0,0.00017418,2]
[383587843,1757011848434,-480.0,0.00017418,2]
[383587845,1757011848443,-500.78631096,0.00017534,2]
[383587847,1757011848453,-500.0,0.00017641,2]
[383587849,1757011848462,-210.017,0.0001769,2]
[383587851,1757011848473,-249.55,0.00017692,2]
[383587853,1757011848482,-480.0,0.00017692,2]
[383587855,1757011848491,-480.0,0.00017692,2]
[383587857,1757011848501,-460.0,0.00017696,2]
[383587858,1757011848511,-710.61373825,0.00017761,2]
[383587860,1757011848520,-864.0,0.00017789,2]
[383587862,1757011848531,-294.0,0.0001783,2]
[383587864,1757011848541,-3000.0,0.00017876,2]
[383587866,1757011848551,-480.0,0.00017966,2]
[383587868,1757011848561,-480.0,0.00017966,2]
[383587870,1757011848571,-357.3878176,0.00018024,2]
[383587872,1757011848581,-248.6153923,0.00018083,2]
[383587874,1757011848591,-292.0,0.00018083,2]
[383587876,1757011848600,-241.6,0.00018083,2]
[383587878,1757011848610,-500.0,0.00018083,2]
[383587880,1757011848620,-250.0,0.000181,2]
[383587882,1757011848630,-480.0,0.0001824,2]
[383587883,1757011848639,-492.95,0.0001824,2]
[383587885,1757011848649,-560.0,0.00018244,2]
[383587887,1757011848659,-500.0,0.00018357,2]
[383587889,1757011848672,-159.26706946,0.00018513,2]
[383587891,1757011848682,-480.0,0.00018514,2]
[383587893,1757011848693,-823.0,0.0001857,2]
[383587895,1757011848705,-500.0,0.00018631,2]
[383587897,1757011848715,-975.0,0.00018654,2]
[383587899,1757011848725,-633.0,0.00018654,2]
[383587901,1757011848735,-2153.0,0.00018654,2]
[383587903,1757011848745,-480.0,0.00018788,2]
[383587905,1757011848754,-660.0,0.00018792,2]
[383587906,1757011848763,-302.45563732,0.000189,2]
[383587908,1757011848774,-500.0,0.00018905,2]
[383587909,1757011848784,-3000.0,0.00018972,2]
[383587910,1757011848794,-4026.0,0.00019,2]
[383587911,1757011848804,-480.0,0.00019062,2]
[383587912,1757011848814,-302.45563732,0.00019089,2]
[383587913,1757011848824,-500.0,0.00019179,2]
[383587914,1757011848833,-2000.0,0.000192,2]
[383587915,1757011848843,-321.13323717,0.000192,2]
[383587916,1757011848853,-1283.24841573,0.000192,2]
[383587917,1757011848863,-302.45563732,0.00019278,2]
[383587918,1757011848872,-480.0,0.00019336,2]
[383587919,1757011848882,-760.0,0.0001934,2]
[383587920,1757011848892,-500.0,0.00019453,2]
[383587921,1757011848901,-302.45563732,0.00019467,2]
[383587922,1757011848911,-1000.0,0.00019567,20]
[383587923,1757011848920,-480.0,0.0001961,2]
[383587924,1757011848930,-302.45563732,0.00019656,2]
[383587925,1757011848939,-500.0,0.00019727,2]
[383587926,1757011848949,-453.68345598,0.00019845,4]
[383587927,1757011848958,-480.0,0.00019884,2]
[383587928,1757011848967,-860.0,0.00019888,2]
[383587930,1757011848977,-151.0,0.000199,2]
[383587932,1757011848987,-151.0,0.000199,2]
[383587934,1757011848997,-301.999999,0.000199,2]
[383587936,1757011849006,-153.898817,0.000199,2]
[383587938,1757011849015,-181.157472,0.000199,2]
[383587940,1757011849024,-11258.97192197,0.000199,2]
[383587941,1757011849035,-153.0,0.00019945,2]
[383587943,1757011849044,-458.8207565,0.00019971,2]
[383587945,1757011849054,-303.8632618,0.0002,2]
[383587947,1757011849064,-500.0,0.00020001,2]
[383587949,1757011849074,-453.68345598,0.00020034,4]
[383587951,1757011849083,-3000.0,0.00020068,2]
[383587953,1757011849093,-480.0,0.00020158,2]
[383587955,1757011849102,-702.847665,0.00020187,2]
[383587957,1757011849112,-2000.0,0.000202,2]
[383587959,1757011849122,-159.26706946,0.00020207,2]
[383587961,1757011849132,-453.68345598,0.00020223,4]
[383587963,1757011849141,-500.0,0.00020275,2]
[383587965,1757011849151,-1152.0,0.00020342,2]
[383587967,1757011849160,-453.68345598,0.00020412,4]
[383587969,1757011849170,-365.21,0.00020432,2]
[383587971,1757011849180,-960.0,0.00020436,2]
[383587973,1757011849190,-22518.62371225,0.000205,2]
[383587987,1757011849317,-54487.93060247,0.000205,2]
[383589370,1757012690672,188.485567,0.00013288,2]
[383589371,1757012690903,297.971266,0.00013542,2]
[383589429,1757013032730,-170.24073526,0.00013613,2]
[383589431,1757013032739,-632.562898,0.00013699,2]
[383589433,1757013032749,-203.94560055,0.00013934,2]
[383589435,1757013032759,-158.71984996,0.00013935,2]
[383589437,1757013032769,-1000.0,0.00013961,2]
[383589439,1757013032779,-480.0,0.00014034,2]
[383589441,1757013032788,-509.88,0.00014034,2]
[383589443,1757013032797,-480.0,0.00014034,2]
[383589445,1757013032807,-480.0,0.00014034,2]
[383589447,1757013032816,-300.0,0.00014034,2]
[383589449,1757013032825,-14665.3514386,0.00014035,2]
[383589465,1757013032972,-654.24,0.00014035,2]
[383590494,1757013043636,-6665.24339697,0.00014035,2]
[383590496,1757013043647,-480.0,0.00014308,2]
[383590498,1757013043656,-300.0,0.00014314,2]
[383590500,1757013043666,-300.0,0.00014314,2]
[383590502,1757013043675,-300.0,0.00014314,2]
[383590504,1757013043685,-300.0,0.00014314,2]
[383590506,1757013043695,-300.0,0.00014314,2]
[383590508,1757013043704,-300.0,0.00014314,2]
[383590510,1757013043714,-300.0,0.00014314,2]
[383590512,1757013043723,-300.0,0.00014314,2]
[383590514,1757013043733,-300.0,0.00014314,2]
[383590516,1757013043742,-300.0,0.00014314,2]
[383590518,1757013043751,-300.0,0.00014314,2]
[383590520,1757013043761,-300.0,0.00014314,2]
[383590522,1757013043770,-300.0,0.00014314,2]
[383590524,1757013043779,-300.0,0.00014314,2]
[383590526,1757013043789,-300.0,0.00014314,2]
[383590528,1757013043799,-217.5338025,0.00014401,2]
[383590530,1757013043809,-530.40833076,0.00014401,2]
[383590532,1757013043818,-417.15472785,0.00014401,2]
[383590534,1757013043828,-232.93421481,0.00014401,2]
[383590536,1757013043838,-846.4110323,0.00014401,2]
[383590538,1757013043847,-160.0,0.00014401,2]
[383590541,1757013043857,-210.86014821,0.0001443,2]
[383590544,1757013043867,-480.0,0.00014582,2]
[383590547,1757013043875,-600.0,0.00014599,2]
[383590549,1757013043882,-480.0,0.00014856,2]
[383590551,1757013043891,-480.0,0.0001513,2]
[383590553,1757013043900,-420.0,0.00015374,2]
[383590554,1757013043910,-480.0,0.00015404,2]
[383590555,1757013043918,-975.0,0.00015654,2]
[383590556,1757013043928,-633.0,0.00015654,2]
[383590557,1757013043937,-2153.0,0.00015654,2]
[383590558,1757013043947,-480.0,0.00015678,2]
[383590559,1757013043956,-554.467478,0.00015952,2]
[383590560,1757013043965,-3000.0,0.00016,2]
[383590561,1757013043974,-3000.0,0.0001601,2]
[383590563,1757013043983,-3000.0,0.0001602,2]
[383590565,1757013043993,-3000.0,0.0001603,2]
[383590567,1757013044005,-3000.0,0.0001604,2]
[383590570,1757013044015,-3000.0,0.0001605,2]
[383590572,1757013044024,-720.0,0.00016059,2]
[383590574,1757013044034,-3000.0,0.0001606,2]
[383590576,1757013044043,-3000.0,0.0001607,2]
[383590578,1757013044052,-3000.0,0.0001608,2]
[383590580,1757013044062,-3000.0,0.0001609,2]
[383590582,1757013044071,-640.14728515,0.000164,2]
[383590584,1757013044080,-587.0,0.00016842,2]
[383590586,1757013044089,-864.0,0.00017665,2]
[383590588,1757013044099,-250.0,0.00017987,2]
[383590590,1757013044111,-823.0,0.00018451,2]
[383590591,1757013044120,-168.014,0.0001857,2]
[383590594,1757013044132,-181.43212234,0.00018653,2]
[383590596,1757013044142,-268.36702204,0.00018653,2]
[383590598,1757013044152,-975.0,0.00018654,2]
[383590600,1757013044161,-633.0,0.00018654,2]
[383590602,1757013044171,-2153.0,0.00018654,2]
[383590604,1757013044180,-302.45563732,0.000189,2]
[383590606,1757013044190,-302.42545213,0.000189,2]
[383590608,1757013044199,-4026.0,0.00019,2]
[383590610,1757013044210,-152.36021579,0.00019089,2]
[383590612,1757013044220,-152.0582972,0.00019089,2]
[383590614,1757013044229,-1981.0,0.000191,2]
[383590616,1757013044238,-1000.0,0.00019432,20]
[383590618,1757013044247,-2700.0,0.0001952,2]
[383590620,1757013044256,-160.0,0.00019524,3]
[383590622,1757013044265,-10783.96160441,0.000199,2]
[383590624,1757013044277,-151.24291427,0.0002,2]
[383590625,1757013044289,-632.562898,0.00020187,2]
[383590626,1757013044301,-1152.0,0.00020214,2]
[383590627,1757013044313,-3493.74174969,0.000205,2]
[383591632,1757013109819,400.0,0.0002739,120]
[383591647,1757014166155,-569.306608,0.00013699,2]
[383591648,1757014166177,-160.0,0.000144,2]
[383591649,1757014166197,-2026.51351779,0.00015928,2]
[383591650,1757014166218,-2026.51351778,0.00015946,2]
[383591651,1757014166238,-2026.51351778,0.00015964,2]
[383591652,1757014166259,-2026.51351778,0.00015981,2]
[383591653,1757014166279,-2026.51351778,0.00015999,2]
[383591654,1757014166300,-152.03238715,0.00015999,2]
[383591655,1757014166321,-300.0,0.00016098,2]
[383591656,1757014166343,-500.0,0.00016099,2]
[383591657,1757014166367,-500.0,0.00016099,2]
[383591658,1757014166391,-500.0,0.00016099,2]
[383591659,1757014166412,-265.44257783,0.00016099,2]
[383591660,1757014166434,-500.0,0.00016099,2]
[383591661,1757014166456,-500.0,0.00016099,2]
[383591662,1757014166478,-500.0,0.00016099,2]
[383591663,1757014166500,-500.0,0.00016099,2]
[383591664,1757014166522,-500.0,0.00016099,2]
[383591665,1757014166544,-648.71734259,0.00016099,2]
[383591666,1757014166568,-500.0,0.00016099,2]
[383591667,1757014166592,-335.62909874,0.00016099,2]
[383591668,1757014169177,-164.37090126,0.00016099,2]
[383591669,1757014169203,-500.0,0.00016099,2]
[383591670,1757014169229,-500.0,0.00016099,2]
[383591671,1757014169257,-500.0,0.00016099,2]
[383591672,1757014169284,-201.9586574,0.00016099,2]
[383591673,1757014170123,-298.0413426,0.00016099,2]
[383591674,1757014170150,-500.0,0.00016099,2]
[383591675,1757014170174,-168.38250225,0.00016099,2]
[383591676,1757014170198,-500.0,0.00016099,2]
[383591677,1757014170221,-500.0,0.00016099,2]
[383591678,1757014170244,-500.0,0.00016099,2]
[383591679,1757014170269,-500.0,0.00016099,2]
[383591680,1757014170292,-500.0,0.00016099,2]
[383591681,1757014170318,-500.0,0.00016099,2]
[383591682,1757014170344,-500.0,0.00016099,2]
[383591683,1757014170367,-173.96262513,0.00016099,2]
[383591684,1757014170390,-500.0,0.00016099,2]
[383591685,1757014170419,-500.0,0.00016099,2]
[383591686,1757014170445,-500.0,0.00016099,2]
[383591687,1757014170469,-500.0,0.00016099,2]
[383591688,1757014170495,-500.0,0.00016099,2]
[383591689,1757014170518,-500.0,0.00016099,2]
[383591690,1757014170542,-199.78820298,0.00016099,2]
[383591691,1757014170568,-500.0,0.00016099,2]
[383591692,1757014170596,-500.0,0.00016099,2]
[383591693,1757014170619,-500.0,0.00016099,2]
[383591694,1757014170642,-500.0,0.00016099,2]
[383591695,1757014170668,-500.0,0.00016099,2]
[383591696,1757014170691,-500.0,0.00016099,2]
[383591697,1757014170715,-500.0,0.00016099,2]
[383591698,1757014170739,-489.92725745,0.00016099,2]
[383591699,1757014174116,-10.07274255,0.00016099,2]
[383591700,1757014174140,-272.25424051,0.00016099,2]
[383591701,1757014174165,-500.0,0.00016099,2]
[383591702,1757014174186,-256.8228496,0.00016099,2]
[383591703,1757014174209,-500.0,0.00016099,2]
[383591704,1757014174229,-500.0,0.00016099,2]
[383591705,1757014174252,-500.0,0.00016099,2]
[383591706,1757014174271,-500.0,0.00016099,2]
[383591707,1757014174292,-500.0,0.00016099,2]
[383591708,1757014174312,-349.69041246,0.00016099,2]
[383591709,1757014174332,-500.0,0.00016099,2]
[383591710,1757014174352,-500.0,0.00016099,2]
[383591711,1757014174374,-500.0,0.00016099,2]
[383591712,1757014174395,-258.07224617,0.00016099,2]
[383591713,1757014174416,-500.0,0.00016099,2]
[383591714,1757014174437,-500.0,0.00016099,2]
[383591715,1757014174458,-500.0,0.00016099,2]
[383591716,1757014174480,-500.0,0.00016099,2]
[383591717,1757014174501,-284.56900648,0.00016099,2]
[383591718,1757014174526,-500.0,0.00016099,2]
[383591719,1757014174551,-500.0,0.00016099,2]
[383591720,1757014174578,-500.0,0.00016099,2]
[383591721,1757014174607,-500.0,0.00016099,2]
[383591722,1757014174632,-159.24315701,0.00016099,2]
[383591752,1757014231724,-627.15426427,0.00015999,2]
[383591754,1757014231734,-796.656189,0.00015999,2]
[383591756,1757014231743,-668.95,0.0001609,3]
[383591758,1757014231752,-334.47,0.0001609,3]
[383591760,1757014231761,-1200.0,0.00016097,2]
[383591762,1757014231771,-300.0,0.00016098,2]
[383591763,1757014231780,-300.0,0.00016098,2]
[383591765,1757014231789,-300.0,0.00016098,2]
[383591767,1757014231798,-300.0,0.00016098,2]
[383591769,1757014231807,-300.0,0.00016098,2]
[383591771,1757014231817,-480.0,0.00016099,2]
[383591773,1757014231827,-340.75684299,0.00016099,2]
[383591775,1757014231836,-500.0,0.00016099,2]
[383591777,1757014231846,-500.0,0.00016099,2]
[383591796,1757014231982,-500.0,0.00016099,2]
[383591798,1757014231998,-500.0,0.00016099,2]
[383591800,1757014232009,-500.0,0.00016099,2]
[383591802,1757014232018,-500.0,0.00016099,2]
[383591804,1757014232027,-350.0,0.00016099,2]
[383591806,1757014232037,-11229.80389162,0.000161,2]
[383591808,1757014232046,-34791.0579123,0.000161,2]
[383591811,1757014232057,-10985.15674884,0.000161,2]
[383591813,1757014232067,-26811.69282439,0.000161,2]
[383591815,1757014232078,-3128.04483884,0.000161,2]
[383591818,1757014232092,-1311.2180687,0.000161,2]
[383591820,1757014232104,-1186.61277691,0.000161,2]
[383592110,1757014237765,-11559.49150369,0.000161,2]
[383592111,1757014237777,-1000.0,0.000161,2]
[383592112,1757014237789,-8044.45010541,0.000161,2]
[383592113,1757014237800,-1922.38994958,0.000161,2]
[383592205,1757014239910,-5628.45027336,0.000161,2]
[383592207,1757014239921,-287.652443,0.000161,2]
[383592286,1757014242895,-22354.41738061,0.000161,2]
[383592287,1757014242907,-42820.511893,0.000161,2]
[383592289,1757014242955,-2052.48292105,0.000161,2]
[383592291,1757014242966,-4984.42585413,0.000161,2]
[383592292,1757014242976,-796.65618898,0.00016117,2]
[383592294,1757014242985,-203.15181488,0.00016211,2]
[383592295,1757014242995,-530.40833076,0.00016211,2]
[383592297,1757014243005,-417.15472785,0.00016211,2]
[383592299,1757014243014,-232.93421481,0.00016211,2]
[383592301,1757014243023,-846.4110323,0.00016211,2]
[383592302,1757014243032,-160.0,0.00016211,2]
[383592303,1757014243042,-217.5338025,0.00016211,2]
[383592304,1757014243052,-160.0,0.00016211,2]
[383592305,1757014243062,-1200.0,0.00016215,2]
[383592306,1757014243072,-796.65618898,0.00016234,2]
[383592307,1757014243081,-633.0,0.00016334,2]
[383592309,1757014243090,-2153.0,0.00016334,2]
[383592310,1757014243100,-409.0,0.00016334,2]
[383592312,1757014243109,-425.265,0.00016334,2]
[383592314,1757014243119,-500.0,0.00016438,2]
[383592316,1757014243129,-500.0,0.00016438,2]
[383592318,1757014243139,-300.0,0.00016558,2]
[383592319,1757014243149,-300.0,0.00016558,2]
[383592320,1757014243159,-300.0,0.00016558,2]
[383592321,1757014243169,-300.0,0.00016558,2]
[383592322,1757014243180,-300.0,0.00016558,2]
[383592323,1757014243190,-300.0,0.00016558,2]
[383592324,1757014243200,-300.0,0.00016558,2]
[383592325,1757014243211,-300.0,0.00016558,2]
[383592326,1757014243220,-300.0,0.00016558,2]
[383592327,1757014243229,-300.0,0.00016558,2]
[383592328,1757014243239,-300.0,0.00016558,2]
[383592329,1757014243248,-300.0,0.00016558,2]
[383592330,1757014243257,-300.0,0.00016558,2]
[383592331,1757014243267,-300.0,0.00016558,2]
[383592332,1757014243276,-300.0,0.00016558,2]
[383592333,1757014243284,-600.0,0.00016558,2]
[383592334,1757014243294,-554.32,0.00017082,2]
[383592335,1757014243303,-514.12,0.00017082,2]
[383592336,1757014243312,-480.0,0.00017082,2]
[383592337,1757014243321,-480.0,0.00017402,2]
[383592338,1757014243330,-480.0,0.00017402,2]
[383592339,1757014243339,-480.0,0.00017402,2]
[383592340,1757014243349,-480.0,0.00017402,2]
[383592341,1757014243358,-480.0,0.00017402,2]
[383592342,1757014243367,-480.0,0.00017402,2]
[383592343,1757014243377,-10563.21062847,0.00017403,2]
[383592344,1757014243387,-1337.9,0.0001746,3]
[383592345,1757014243397,-668.94,0.0001746,3]
[383592346,1757014243406,-11479.2209372,0.00017503,2]